[Event "30th NATO Chess-ch 2019"]
[Site "Berlin"]
[Date "2019.09.19"]
[Round "6.22"]
[White "Sauer, Marko"]
[Black "Crapulli, Giuseppe"]
[Result "1-0"]
[ECO "B80"]
[WhiteElo "2081"]
[BlackElo "1836"]
[Annotator "NA"]
[PlyCount "49"]
[EventDate "2019.09.16"]
[EventType "swiss"]
[EventCountry "GER"]
[SourceTitle "playchess.com"]
[Source "ChessBase"]
[SourceQuality "1"]
[TimeControl "40/7200:1800"]

1. e4 {[%emt 1:59:56]} c5 {[%emt 1:59:48]} 2. Nf3 {[%emt 1:59:48]} d6 {[%emt 1:57:22]} 3. d4 {[%emt 1:58:38]} cxd4 {[%emt 1:57:17]} 4. Nxd4 {[%emt 1:58:21]} Nf6 {[%emt 1:57:12]} 5. Nc3 {[%emt 1:57:16]} a6 {[%emt 1:57:08]} 6. a4 {[%emt 1:56:04]} e6 {[%emt 1:56:04]} 7. Be3 {[%emt 1:53:28]} b6 {[%emt 1:53:28]} 8. g3 {[%emt 1:46:25]} Bb7 {[%emt 1:55:00]} 9. Bg2 {[%emt 1:46:15]} Nbd7 {[%emt 1:46:15]} 10. Qe2 {[%emt 1:44:08]} Qc7 {[%emt 1:44:08]} 11. f4 {[%emt 1:38:40]} e5 {[%emt 1:38:40]} 12. Nb3 {[%emt 1:36:04]} Be7 {[%emt 1:44:04]} 13. f5 {[%emt 1:22:41]} h5 {[%emt 1:22:41]} 14. h3 {[%emt 1:18:53]} O-O-O {[%emt 1:39:06]} 15. O-O-O {[%emt 1:16:04]} Nc5 {[%emt 1:36:23]} 16. Nxc5 {[%emt 1:08:20]} dxc5 {[%emt 1:35:36]} 17. Qc4 {[%emt 1:35:36]} Rxd1+ {[%emt 1:30:54]} 18. Rxd1 {[%emt 0:58:37]} Rf8 {[%emt 0:58:37]} 19. Bf3 {[%emt 1:30:10]} g6 {[%emt 1:28:09]} 20. Bh6 {[%emt 0:49:26]} Rg8 {[%emt 1:21:39]} 21. g4 {[%emt 0:46:03]} hxg4 {[%emt 1:20:52]} 22. Bxg4 {[%emt 0:44:55]} Kb8 {[%emt 1:20:41]} 23. Rd7 {[%emt 0:41:49]} Nxd7 {[%emt 0:41:49] Qxg8+ 0:40:13} 24. Bf8 Z0 {Qd8} 25. Nb1 1-0

[Event "30th NATO Chess-ch 2019"]
[Site "Berlin"]
[Date "2019.09.19"]
[Round "6.23"]
[White "Pirs, Matjaz"]
[Black "Nikomanis, Andreas"]
[Result "1/2-1/2"]
[ECO "D00"]
[WhiteElo "2203"]
[BlackElo "2053"]
[Annotator "NA"]
[PlyCount "120"]
[EventDate "2019.09.16"]
[EventType "swiss"]
[EventCountry "GER"]
[SourceTitle "playchess.com"]
[Source "ChessBase"]
[SourceQuality "1"]
[TimeControl "40/7200:1800"]

1. d4 {[%emt 2:00:00]} Nf6 {[%emt 1:59:53]} 2. Nc3 {[%emt 1:59:53]} d5 {[%emt 1:59:45]} 3. Bf4 {[%emt 1:59:45]} e6 {[%emt 1:57:20]} 4. e3 {[%emt 1:57:20]} a6 {[%emt 1:56:45]} 5. Nf3 {[%emt 1:56:45]} Be7 {[%emt 1:53:14]} 6. Ne5 {[%emt 1:51:58]} O-O {[%emt 1:51:58]} 7. Bd3 {[%emt 1:49:01]} c5 {[%emt 1:55:59]} 8. O-O {[%emt 1:48:08]} Nc6 {[%emt 1:55:26]} 9. dxc5 {[%emt 1:55:26]} Bxc5 {[%emt 1:41:56]} 10. Qf3 {[%emt 1:54:45]} Bd7 {[%emt 1:35:55]} 11. Ne2 {[%emt 1:16:15]} Nb4 {[%emt 1:33:21]} 12. a3 {[%emt 1:15:30]} Nxd3 {[%emt 1:15:30]} 13. cxd3 {[%emt 1:15:10]} Rc8 {[%emt 1:15:10]} 14. Nxd7 {[%emt 0:58:02]} Qxd7 {[%emt 1:29:04]} 15. b4 {[%emt 1:29:04]} Be7 {[%emt 0:53:00]} 16. Be5 {[%emt 0:47:31]} Qb5 {[%emt 1:22:38]} 17. Rfd1 {[%emt 0:45:25]} Nd7 {[%emt 1:20:00]} 18. Bb2 {[%emt 0:41:50]} Nb6 {[%emt 0:41:50]} 19. Qg4 {[%emt 0:38:18]} g6 {[%emt 1:16:08]} 20. Qd4 {[%emt 1:16:08]} f6 {[%emt 1:15:30]} 21. Nc3 {[%emt 0:36:03]} Qc6 {[%emt 1:08:47]} 22. Rac1 {[%emt 1:08:47]} e5 {[%emt 1:05:38]} 23. Qg4 {[%emt 1:05:38]} Qd6 {[%emt 1:04:18]} 24. Nb1 {[%emt 1:04:18]} Qd7 {[%emt 0:30:24]} 25. Qxd7 {[%emt 0:28:49]} Nxd7 {[%emt 0:58:42]} 26. Rxc8 {[%emt 0:27:34]} Rxc8 {[%emt 0:58:36]} 27. Rc1 {[%emt 0:27:28]} Rxc1+ {[%emt 0:27:28]} 28. Bxc1 {[%emt 0:27:25]} b5 {[%emt 0:55:12]} 29. Kf1 {[%emt 0:55:12]} Kf7 {[%emt 0:55:04]} 30. Ke2 {[%emt 0:25:00]} f5 {[%emt 0:25:00]} 31. f3 {[%emt 0:24:32]} Bg5 {[%emt 0:24:32]} 32. g3 {[%emt 0:24:05]} Ke6 33. Nd2 {[%emt 0:38:27]} Bd8 {[%emt 0:33:26]} 34. Nb3 {[%emt 0:22:04]} Bb6 {[%emt 0:30:46]} 35. Bb2 {[%emt 0:21:39]} Kd6 {[%emt 0:21:39]} 36. Bc3 {[%emt 0:19:55]} h5 {[%emt 0:26:42]} 37. Bd2 {[%emt 0:18:02]} e4 {[%emt 0:18:02]} 38. Bc3 {[%emt 0:16:22]} Bd8 {[%emt 0:16:22]} 39. Bd4 {[%emt 0:14:44]} Kc6 {[%emt 0:20:02]} 40. Nd2 {[%emt 0:12:52]} exd3+ {[%emt 0:17:08]} 41. Kxd3 {[%emt 0:17:08]} a5 {[%emt 0:15:03]} 42. e4 {[%emt 0:15:03]} fxe4+ {[%emt 0:12:03]} 43. fxe4 {[%emt 0:05:53]} axb4 {[%emt 0:11:43]} 44. axb4 {[%emt 0:04:19]} Be7 {[%emt 0:05:21]} 45. Bc3 {[%emt 0:03:42]} Kd6 {[%emt 0:00:50]} 46. Nf3 {[%emt 0:01:52]} dxe4+ {[%emt 0:31:52]} 47. Kxe4 {[%emt 0:31:16]} Bf6 {[%emt 0:19:54]} 48. Bxf6 {[%emt 0:23:15]} Nxf6+ {[%emt 0:23:12]} 49. Kf4 {[%emt 0:23:12]} Nd5+ {[%emt 0:17:04]} 50. Kg5 {[%emt 0:22:53]} Nxb4 {[%emt 0:16:27]} 51. Nd4 {[%emt 0:19:46]} Kc5 {[%emt 0:16:15]} 52. Nxb5 {[%emt 0:19:41]} Kxb5 {[%emt 0:16:10]} 53. Kxg6 {[%emt 0:16:10]} Kc5 {[%emt 0:15:58]} 54. Kxh5 {[%emt 0:19:34]} Kd6 {[%emt 0:15:52]} 55. Kg6 {[%emt 0:19:23]} Ke6 {[%emt 0:19:23]} 56. g4 {[%emt 0:16:04]} Nd3 {[%emt 0:14:25]} 57. Kh6 {[%emt 0:15:11]} Ne5 {[%emt 0:13:06]} 58. h3 {[%emt 0:13:06]} Kf7 {[%emt 0:12:14]} 59. g5 {[%emt 0:12:52]} Ng6 {[%emt 0:11:38]} 60. Kh5 {[%emt 0:10:09]} Nf4+ {[%emt 0:10:09]} 1/2-1/2

[Event "30th NATO Chess-ch 2019"]
[Site "Berlin"]
[Date "2019.09.19"]
[Round "6.24"]
[White "Marquardt, Christian"]
[Black "Ermalis, Rytis"]
[Result "1-0"]
[ECO "A26"]
[WhiteElo "2049"]
[BlackElo "1960"]
[Annotator "NA"]
[PlyCount "41"]
[EventDate "2019.09.16"]
[EventType "swiss"]
[EventCountry "GER"]
[SourceTitle "playchess.com"]
[Source "ChessBase"]
[SourceQuality "1"]
[TimeControl "40/7200:1800"]

1. c4 {[%emt 2:00:00]} Nf6 {[%emt 1:59:57]} 2. g3 {[%emt 1:59:41]} g6 {[%emt 1:57:36]} 3. Bg2 {[%emt 1:59:22]} Bg7 {[%emt 1:57:24]} 4. Nc3 {[%emt 1:57:24]} d6 {[%emt 1:56:27]} 5. d3 {[%emt 1:56:27]} O-O {[%emt 1:56:07]} 6. e4 {[%emt 1:56:07]} e5 {[%emt 1:57:50]} 7. Nge2 {[%emt 1:57:28]} Nc6 {[%emt 1:57:28]} 8. O-O {[%emt 1:56:52]} Be6 {[%emt 1:38:58]} 9. Nd5 {[%emt 1:52:11]} Nd7 {[%emt 1:52:11]} 10. Be3 {[%emt 1:49:23]} f5 {[%emt 1:19:55]} 11. exf5 {[%emt 1:19:55]} Bxf5 {[%emt 1:48:30]} 12. d4 {[%emt 1:46:37]} exd4 {[%emt 1:06:18]} 13. Nxd4 {[%emt 1:46:17]} Nxd4 {[%emt 1:46:17]} 14. Bxd4 {[%emt 1:45:47]} Ne5 {[%emt 1:03:03]} 15. Ne3 {[%emt 1:03:03]} Nc6 {[%emt 0:46:29]} 16. Bxg7 Kxg7 {[%emt 0:46:26]} 17. Qd2 {[%emt 1:28:33]} Qd7 {[%emt 1:28:33]} 18. Qc3+ {[%emt 1:27:17]} Kh6 {[%emt 0:39:28]} 19. Rad1 {[%emt 1:21:39]} Rae8 {[%emt 0:29:35]} 20. c5 {[%emt 1:18:42]} Qg7 {[%emt 0:19:22]} 21. Qc1 {[%emt 0:19:22]} 1-0

[Event "30th NATO Chess-ch 2019"]
[Site "Berlin"]
[Date "2019.09.19"]
[Round "6.25"]
[White "Drenthen, Arjan"]
[Black "Nielsen, Jan Mose"]
[Result "1/2-1/2"]
[ECO "E90"]
[WhiteElo "1917"]
[BlackElo "2044"]
[Annotator "NA"]
[PlyCount "22"]
[EventDate "2019.09.16"]
[EventType "swiss"]
[EventCountry "GER"]
[SourceTitle "playchess.com"]
[Source "ChessBase"]
[SourceQuality "1"]
[TimeControl "40/7200:1800"]

1. d4 {[%emt 1:59:56]} Nf6 {[%emt 1:59:56]} 2. c4 {[%emt 1:59:50]} g6 {[%emt 1:59:50]} 3. Nc3 {[%emt 1:59:42]} Bg7 {[%emt 1:58:43]} 4. e4 {[%emt 1:58:43]} d6 {[%emt 1:58:38]} 5. Nf3 {[%emt 1:59:32]} O-O {[%emt 1:57:46]} 6. h3 {[%emt 1:59:27]} c6 {[%emt 1:55:28]} 7. Be3 {[%emt 1:58:27]} a6 {[%emt 1:53:46]} 8. a4 {[%emt 1:55:51]} Qa5 {[%emt 1:43:38]} 9. Bd3 {[%emt 1:52:06]} Nbd7 {[%emt 1:52:06]} 10. O-O {[%emt 1:51:11]} e5 {[%emt 1:36:24]} 11. d5 {[%emt 1:36:24]} cxd5 {[%emt 1:48:50]} 1/2-1/2

[Event "30th NATO Chess-ch 2019"]
[Site "Berlin"]
[Date "2019.09.19"]
[Round "6.26"]
[White "Schott, Guido"]
[Black "Tammisto, Janek"]
[Result "0-1"]
[ECO "A36"]
[WhiteElo "2043"]
[BlackElo "1912"]
[Annotator "NA"]
[PlyCount "61"]
[EventDate "2019.09.16"]
[EventType "swiss"]
[EventCountry "GER"]
[SourceTitle "playchess.com"]
[Source "ChessBase"]
[SourceQuality "1"]
[TimeControl "40/7200:1800"]

1. c4 {[%emt 1:59:51]} g6 {[%emt 1:59:47]} 2. Nc3 {[%emt 1:59:47]} Bg7 {[%emt 1:59:44]} 3. g3 {[%emt 1:58:53]} c5 {[%emt 1:57:24]} 4. Bg2 {[%emt 1:58:29]} e6 {[%emt 1:56:15]} 5. Nf3 {[%emt 1:57:34]} Nc6 {[%emt 1:55:58]} 6. O-O {[%emt 1:55:36]} Nge7 {[%emt 1:55:00]} 7. e4 {[%emt 1:49:42]} O-O {[%emt 1:51:01]} 8. d3 {[%emt 1:46:54]} d5 {[%emt 1:46:54]} 9. Qe2 {[%emt 1:38:41]} d4 {[%emt 1:38:41]} 10. Nd1 {[%emt 1:37:11]} Qc7 {[%emt 1:34:03]} 11. Nh4 {[%emt 1:34:03]} e5 {[%emt 1:23:30]} 12. f4 {[%emt 1:35:59]} f6 {[%emt 1:23:24]} 13. Nf2 {[%emt 1:23:24]} Bd7 {[%emt 1:35:24]} 14. Bh3 {[%emt 1:22:20]} Bxh3 {[%emt 1:22:20]} 15. Nxh3 {[%emt 1:09:30]} Rf7 {[%emt 1:20:30]} 16. Qg4 {[%emt 1:11:34]} h5 {[%emt 1:05:02]} 17. Qe2 {[%emt 1:05:02]} Qd7 {[%emt 1:03:05]} 18. f5 {[%emt 1:02:43]} g5 {[%emt 1:00:54]} 19. Bxg5 {[%emt 1:00:54]} fxg5 {[%emt 0:59:55]} 20. Nxg5 {[%emt 1:00:34]} Rf6 {[%emt 0:57:04]} 21. Qxh5 {[%emt 0:58:42]} Rh6 {[%emt 0:58:42]} 22. Qf7+ {[%emt 0:57:34]} Kh8 {[%emt 0:55:42]} 23. f6 {[%emt 0:54:36]} Rg8 {[%emt 0:54:36]} 24. fxg7+ {[%emt 0:49:45]} Rxg7 {[%emt 0:54:13]} 25. Qf8+ {[%emt 0:48:47]} Ng8 {[%emt 0:52:28]} 26. Rf7 {[%emt 0:44:18]} Rxf7 27. Nxf7+ {[%emt 0:44:06]} Kh7 {[%emt 0:48:42]} 28. Nxh6 {[%emt 0:43:31]} Nxh6 {[%emt 0:48:38]} 29. Rf1 {[%emt 0:42:35]} Nb4 {[%emt 0:45:31]} 30. Nf5 {[%emt 0:41:11]} Ng4 {[%emt 0:44:55]} 31. Ne7 {[%emt 0:39:31]} 0-1

[Event "30th NATO Chess-ch 2019"]
[Site "Berlin"]
[Date "2019.09.19"]
[Round "6.27"]
[White "Slaidins, Janis"]
[Black "Aagaard, Gert"]
[Result "0-1"]
[ECO "B31"]
[WhiteElo "1834"]
[BlackElo "2029"]
[Annotator "NA"]
[PlyCount "82"]
[EventDate "2019.09.16"]
[EventType "swiss"]
[EventCountry "GER"]
[SourceTitle "playchess.com"]
[Source "ChessBase"]
[SourceQuality "1"]
[TimeControl "40/7200:1800"]

1. e4 {[%emt 1:59:56]} c5 {[%emt 1:59:57]} 2. Nf3 {[%emt 1:59:46]} Nc6 {[%emt 1:59:55]} 3. Bb5 {[%emt 1:59:32]} g6 {[%emt 1:59:42]} 4. Bxc6 {[%emt 1:58:52]} bxc6 {[%emt 1:58:07]} 5. d4 {[%emt 1:57:24]} Ba6 {[%emt 1:56:56]} 6. c3 {[%emt 1:56:14]} Qb6 {[%emt 1:56:14]} 7. dxc5 {[%emt 1:46:24]} Qxc5 {[%emt 1:45:38]} 8. Qd4 {[%emt 1:54:28]} Qxd4 {[%emt 1:45:32]} 9. Nxd4 Bg7 {[%emt 1:44:46]} 10. Nd2 {[%emt 1:44:46]} Nf6 {[%emt 1:47:27]} 11. f3 {[%emt 1:46:57]} c5 {[%emt 1:37:20]} 12. N4b3 {[%emt 1:41:35]} d6 {[%emt 1:41:35]} 13. Kf2 {[%emt 1:39:50]} Nd7 {[%emt 1:35:24]} 14. f4 {[%emt 1:35:24]} O-O {[%emt 1:28:56]} 15. Re1 {[%emt 1:31:25]} e5 {[%emt 1:24:50]} 16. Nf3 {[%emt 1:29:26]} c4 {[%emt 1:20:26]} 17. Nbd2 {[%emt 1:28:40]} Nc5 {[%emt 1:28:40]} 18. Rd1 {[%emt 1:22:23]} exf4 {[%emt 1:22:23]} 19. Ne1 {[%emt 1:16:53]} g5 {[%emt 1:11:11]} 20. Kf3 {[%emt 1:11:11]} Rfe8 {[%emt 1:13:58]} 21. g3 {[%emt 1:13:14]} fxg3 {[%emt 1:09:28]} 22. hxg3 {[%emt 1:09:28]} h6 {[%emt 1:12:56]} 23. Ng2 {[%emt 1:08:48]} Nxe4 {[%emt 0:59:32]} 24. Nxe4 {[%emt 1:10:46]} Bb7 {[%emt 0:59:25]} 25. Ne3 {[%emt 0:59:25]} Bxe4+ {[%emt 0:55:54]} 26. Kf2 {[%emt 1:08:16]} Bd3 {[%emt 0:55:42]} 27. Re1 {[%emt 0:55:42]} Rab8 {[%emt 0:54:36]} 28. Nd5 {[%emt 1:06:51]} Rxe1 {[%emt 1:06:51]} 29. Kxe1 {[%emt 0:53:37]} Rb5 {[%emt 0:52:27]} 30. Ne7+ {[%emt 1:02:05]} Kf8 {[%emt 0:51:46]} 31. Nc8 {[%emt 1:01:56]} Rc5 {[%emt 1:01:56]} 32. Nxa7 {[%emt 0:59:37]} Rf5 {[%emt 0:44:16]} 33. Nc6 {[%emt 0:44:16]} Rf1+ {[%emt 0:58:00]} 34. Kd2 {[%emt 0:42:22]} h5 {[%emt 0:34:56]} 35. a4 {[%emt 0:55:07]} h4 {[%emt 0:34:36]} 36. a5 {[%emt 0:54:53]} h3 {[%emt 0:54:53]} 37. a6 {[%emt 0:53:31]} h2 {[%emt 0:27:57]} 38. a7 {[%emt 0:53:22]} Rf2+ {[%emt 0:27:51]} 39. Ke3 {[%emt 0:51:40]} Re2+ {[%emt 0:27:44]} 40. Kf3 {[%emt 0:27:44]} h1=Q+ {[%emt 0:27:23]} 41. Kg4 f5+ 0-1

[Event "30th NATO Chess-ch 2019"]
[Site "Berlin"]
[Date "2019.09.19"]
[Round "6.28"]
[White "Voroblievas, Arturas"]
[Black "Michalski, Daniel"]
[Result "0-1"]
[ECO "C41"]
[WhiteElo "1762"]
[BlackElo "2024"]
[Annotator "NA"]
[PlyCount "58"]
[EventDate "2019.09.16"]
[EventType "swiss"]
[EventCountry "GER"]
[SourceTitle "playchess.com"]
[Source "ChessBase"]
[SourceQuality "1"]
[TimeControl "40/7200:1800"]

1. e4 {[%emt 1:59:58]} d6 {[%emt 1:59:53]} 2. d4 {[%emt 1:59:53]} Nf6 {[%emt 1:59:48]} 3. Nc3 {[%emt 1:59:42]} e5 {[%emt 1:59:42]} 4. Nf3 {[%emt 1:58:38]} Nbd7 {[%emt 1:59:36]} 5. Bc4 {[%emt 1:59:36]} Be7 {[%emt 1:56:32]} 6. Bxf7+ {[%emt 1:56:32]} Kxf7 {[%emt 1:56:18]} 7. Ng5+ {[%emt 1:46:00]} Kg8 {[%emt 1:55:58]} 8. Ne6 {[%emt 1:45:23]} Qe8 {[%emt 1:45:23]} 9. Nxc7 {[%emt 1:45:06]} Qg6 {[%emt 1:55:31]} 10. O-O {[%emt 1:42:12]} Rb8 {[%emt 1:42:12]} 11. f4 {[%emt 1:30:47]} h6 {[%emt 1:48:27]} 12. dxe5 {[%emt 1:24:31]} dxe5 {[%emt 1:24:31]} 13. f5 {[%emt 1:47:59]} Bc5+ {[%emt 1:39:01]} 14. Kh1 {[%emt 1:39:01]} Qf7 {[%emt 1:33:00]} 15. Ne6 {[%emt 1:33:00]} b6 {[%emt 1:28:37]} 16. Rf3 {[%emt 1:12:59]} Bb7 {[%emt 1:18:28]} 17. Rg3 {[%emt 1:10:42]} Bf8 {[%emt 1:16:31]} 18. Qe2 {[%emt 1:16:31]} Nc5 {[%emt 1:04:03]} 19. Nxf8 {[%emt 0:55:59]} Rxf8 {[%emt 1:13:28]} 20. Re3 {[%emt 1:13:28]} Nfxe4 {[%emt 1:07:49]} 21. Nxe4 {[%emt 0:49:22]} Nxe4 {[%emt 1:07:28]} 22. Rxe4 {[%emt 0:38:19]} Qxf5 {[%emt 1:04:52]} 23. Qc4+ {[%emt 0:38:10]} Kh7 {[%emt 1:04:19]} 24. Re1 {[%emt 0:36:53]} Bxg2+ {[%emt 1:03:45]} 25. Kxg2 {[%emt 0:36:36]} Qf2+ {[%emt 1:03:30]} 26. Kh3 {[%emt 0:36:04]} Rf3+ {[%emt 0:36:04]} 27. Kg4 {[%emt 1:03:06]} Qg2+ {[%emt 1:02:55]} 28. Kh5 {[%emt 0:35:33]} Rh3+ {[%emt 1:02:39]} 29. Qh4 {[%emt 0:35:24]} g6# {[%emt 0:35:24]} 0-1

[Event "30th NATO Chess-ch 2019"]
[Site "Berlin"]
[Date "2019.09.19"]
[Round "6.29"]
[White "Stankowski, Aleksander"]
[Black "Allmann, Lauri"]
[Result "1-0"]
[ECO "A07"]
[WhiteElo "2022"]
[BlackElo "1827"]
[Annotator "NA"]
[PlyCount "91"]
[EventDate "2019.09.16"]
[EventType "swiss"]
[EventCountry "GER"]
[SourceTitle "playchess.com"]
[Source "ChessBase"]
[SourceQuality "1"]
[TimeControl "40/7200:1800"]

1. Nf3 {[%emt 1:59:50]} d5 {[%emt 1:59:36]} 2. g3 {[%emt 1:59:44]} g6 {[%emt 1:59:20]} 3. Bg2 {[%emt 1:59:20]} Bg7 {[%emt 1:59:40]} 4. O-O {[%emt 1:59:35]} Nf6 {[%emt 1:58:53]} 5. d3 {[%emt 1:59:30]} O-O {[%emt 1:58:41]} 6. Nc3 {[%emt 1:58:41]} Nbd7 {[%emt 1:59:26]} 7. e4 {[%emt 1:57:05]} dxe4 {[%emt 1:55:41]} 8. dxe4 {[%emt 1:59:09]} Nc5 {[%emt 1:54:09]} 9. e5 {[%emt 1:55:58]} Ng4 {[%emt 1:45:20]} 10. Qe2 {[%emt 1:54:18]} c6 {[%emt 1:54:18]} 11. h3 {[%emt 1:49:07]} Nh6 {[%emt 1:40:44]} 12. Be3 {[%emt 1:47:55]} Ne6 {[%emt 1:37:23]} 13. g4 {[%emt 1:43:51]} Qc7 {[%emt 1:31:27]} 14. Qd2 {[%emt 1:42:00]} g5 {[%emt 1:42:00]} 15. Nxg5 {[%emt 1:24:13]} Qxe5 {[%emt 1:39:10]} 16. Nf3 {[%emt 1:38:38]} Qf6 {[%emt 1:06:38]} 17. g5 {[%emt 1:06:38]} Nxg5 {[%emt 1:05:06]} 18. Bxg5 {[%emt 1:34:35]} Qg6 {[%emt 1:34:35]} 19. Nh4 {[%emt 1:33:18]} Qd6 {[%emt 1:33:18]} 20. Qxd6 exd6 {[%emt 0:53:34]} 21. Be7 {[%emt 1:31:52]} Re8 {[%emt 0:51:53]} 22. Bxd6 {[%emt 1:31:29]} Bf6 {[%emt 1:31:29]} 23. Bg3 {[%emt 1:27:23]} Kh8 {[%emt 0:43:52]} 24. Ne4 {[%emt 0:43:52]} Bxb2 {[%emt 0:36:47]} 25. Rab1 {[%emt 0:36:47]} Be5 {[%emt 1:22:30]} 26. Bxe5+ {[%emt 1:20:25]} Rxe5 {[%emt 0:32:29]} 27. Ng3 {[%emt 1:15:19]} Rc5 {[%emt 0:28:13]} 28. Rfd1 {[%emt 1:10:45]} Be6 {[%emt 0:25:56]} 29. Rxb7 {[%emt 1:09:56]} Rxc2 {[%emt 0:24:19]} 30. Rdb1 {[%emt 1:07:12]} Kg7 {[%emt 0:20:47]} 31. Rb8 {[%emt 1:03:43]} Rxb8 {[%emt 1:03:43]} 32. Rxb8 {[%emt 1:03:41]} Rc5 {[%emt 1:03:41]} 33. Bf3 {[%emt 1:01:31]} Rc1+ {[%emt 0:08:50]} 34. Kg2 {[%emt 1:00:46]} Kf6 {[%emt 1:00:46]} 35. Be4 {[%emt 0:58:17]} a5 {[%emt 0:06:51]} 36. Ra8 {[%emt 0:57:28]} Rc5 {[%emt 0:05:57]} 37. Ra6 {[%emt 0:55:29]} Bxa2 {[%emt 0:03:05]} 38. Bxc6 {[%emt 0:55:01]} Ke5 {[%emt 0:55:01]} 39. Nf3+ {[%emt 0:02:13]} Kf4 {[%emt 0:01:02]} 40. Be4 {[%emt 0:33:28]} Be6 {[%emt 0:00:09]} 41. Bd3 {[%emt 0:33:03]} Bxh3+ {[%emt 0:22:36]} 42. Kxh3 {[%emt 1:03:02]} Ng4 {[%emt 0:21:33]} 43. Kg2 {[%emt 0:21:33]} Ne5 {[%emt 0:18:12]} 44. Rf6+ {[%emt 0:18:12]} Kg4 {[%emt 0:17:12]} 45. Bf5+ {[%emt 0:17:12]} Kf4 {[%emt 0:16:27]} 46. Bc8# {[%emt 0:16:27] --- Bce6} 1-0

[Event "30th NATO Chess-ch 2019"]
[Site "Berlin"]
[Date "2019.09.19"]
[Round "6.30"]
[White "Van den Heuvel, Tonnie"]
[Black "Nilsson, Erik"]
[Result "1/2-1/2"]
[ECO "A01"]
[WhiteElo "1819"]
[BlackElo "2022"]
[Annotator "NA"]
[PlyCount "23"]
[EventDate "2019.09.16"]
[EventType "swiss"]
[EventCountry "GER"]
[SourceTitle "playchess.com"]
[Source "ChessBase"]
[SourceQuality "1"]
[TimeControl "40/7200:1800"]

1. b3 {[%emt 1:59:55]} e5 {[%emt 1:59:35]} 2. Bb2 {[%emt 1:59:48]} Nc6 {[%emt 1:59:48]} 3. e3 {[%emt 1:59:08]} Nf6 {[%emt 1:59:35]} 4. Bb5 {[%emt 1:58:59]} Bd6 {[%emt 1:58:44]} 5. Na3 {[%emt 1:56:38]} Na5 {[%emt 1:56:38]} 6. Be2 {[%emt 1:56:08]} c6 {[%emt 1:56:08]} 7. c4 {[%emt 1:55:47]} b6 {[%emt 1:51:17]} 8. Nf3 {[%emt 1:54:18]} O-O {[%emt 1:48:13]} 9. Nc2 {[%emt 1:53:44]} Re8 {[%emt 1:53:44]} 10. d4 {[%emt 1:47:54]} e4 {[%emt 1:47:54]} 11. Ne5 {[%emt 1:47:20]} Bf8 {[%emt 1:47:04]} 12. b4 {[%emt 1:44:19]} 1/2-1/2

[Event "30th NATO Chess-ch 2019"]
[Site "Berlin"]
[Date "2019.09.20"]
[Round "7.2"]
[White "Wang, Eigen"]
[Black "Sypien, Mateusz"]
[Result "1/2-1/2"]
[ECO "E98"]
[WhiteElo "2193"]
[BlackElo "2243"]
[Annotator "ChessBase"]
[PlyCount "54"]
[EventDate "2019.09.16"]
[EventType "swiss"]
[EventCountry "GER"]
[SourceTitle "playchess.com"]
[Source "ChessBase"]
[SourceQuality "1"]
[TimeControl "40/7200:1800"]

1. d4 {[%emt 1:59:47]} Nf6 {[%emt 1:59:47]} 2. c4 {[%emt 1:59:39]} g6 {[%emt 1:59:39]} 3. Nc3 {[%emt 1:59:45]} Bg7 {[%emt 1:59:33]} 4. e4 {[%emt 1:59:41]} d6 {[%emt 1:59:36]} 5. Nf3 {[%emt 1:59:36]} O-O {[%emt 1:59:20]} 6. Be2 {[%emt 1:59:20]} e5 {[%emt 1:58:39]} 7. O-O {[%emt 1:58:31]} Nc6 {[%emt 1:58:14]} 8. d5 {[%emt 1:58:16]} Ne7 {[%emt 1:58:16]} 9. Ne1 {[%emt 1:57:59]} c5 {[%emt 1:54:08]} 10. Nd3 {[%emt 1:54:08]} Ne8 {[%emt 1:54:24]} 11. f4 {[%emt 1:45:49]} b6 {[%emt 1:45:52]} 12. Rb1 {[%emt 1:38:36]} f5 {[%emt 1:42:43]} 13. Bf3 {[%emt 1:29:26]} Rb8 {[%emt 1:29:26]} 14. a3 {[%emt 1:23:55]} fxe4 {[%emt 1:25:56]} 15. Nxe4 {[%emt 1:25:56]} exf4 {[%emt 1:24:27]} 16. Bxf4 {[%emt 1:15:57]} Nf5 {[%emt 1:22:39]} 17. b4 {[%emt 1:08:35]} Rb7 {[%emt 1:17:24]} 18. bxc5 {[%emt 0:57:22]} bxc5 {[%emt 1:17:05]} 19. Rxb7 {[%emt 0:56:21]} Bxb7 {[%emt 1:17:01]} 20. Qa4 {[%emt 0:52:38]} a6 {[%emt 1:09:00]} 21. Bg5 {[%emt 0:47:01]} Qc7 {[%emt 0:47:01]} 22. Nf4 {[%emt 0:42:11]} Bd4+ {[%emt 1:01:18]} 23. Kh1 {[%emt 1:01:18]} Neg7 {[%emt 1:01:01]} 24. Re1 {[%emt 0:29:51]} Be5 {[%emt 0:47:42]} 25. Nd3 {[%emt 0:26:28]} Bd4 {[%emt 0:47:32]} 26. Nf4 {[%emt 0:20:35]} Be5 {[%emt 0:47:20]} 27. Nd3 {[%emt 0:17:53]} Bd4 1/2-1/2